[Event "Istanbul Open 2019"]
[Site "Istanbul"]
[Date "2019.08.31"]
[Round "8.10"]
[White "Ozsakallioglu, Akin"]
[Black "Suleymanli, Suleyman"]
[Result "1/2-1/2"]
[ECO "C06"]
[WhiteElo "2067"]
[BlackElo "2021"]
[Annotator "NA"]
[PlyCount "45"]
[EventDate "2019.08.26"]
[EventType "swiss"]
[EventCountry "TUR"]
[SourceTitle "playchess.com"]
[Source "ChessBase"]
[SourceQuality "1"]
[TimeControl "5400+30"]

1. e4 {[%emt 0:00:30]} e6 {[%emt 0:00:30]} 2. d4 {[%emt 0:00:30]} d5 {[%emt 0:00:30]} 3. Nd2 {[%emt 0:00:30]} Nf6 {[%emt 0:00:30]} 4. e5 {[%emt 0:02:30]} Nfd7 {[%emt 0:00:00]} 5. Bd3 {[%emt 0:00:30]} c5 {[%emt 0:00:00]} 6. c3 {[%emt 0:00:00]} Nc6 {[%emt 0:00:30]} 7. Ngf3 {[%emt 0:00:00]} Qb6 {[%emt 0:00:30]} 8. O-O {[%emt 0:00:30]} cxd4 {[%emt 0:00:30]} 9. cxd4 {[%emt 0:00:00]} Nxd4 {[%emt 0:11:30]} 10. Nxd4 {[%emt 0:01:00]} Qxd4 {[%emt 0:01:30]} 11. Nf3 {[%emt 0:00:30]} Qb6 {[%emt 0:00:30]} 12. Qa4 {[%emt 0:00:00]} Qb4 {[%emt 0:06:30]} 13. Qc2 {[%emt 0:00:00]} h6 {[%emt 0:01:30]} 14. a3 {[%emt 0:02:30]} Qb6 {[%emt 0:02:30]} 15. b4 {[%emt 0:01:30]} Be7 {[%emt 0:02:30]} 16. Be3 {[%emt 0:05:30]} Qd8 {[%emt 0:01:30]} 17. Rfc1 {[%emt 0:05:30]} O-O {[%emt 0:02:30]} 18. Qd2 {[%emt 0:00:30]} f5 {[%emt 0:05:30]} 19. Bxh6 {[%emt 0:12:30]} gxh6 {[%emt 0:07:30]} 20. Qxh6 {[%emt 0:00:30]} Rf7 {[%emt 0:06:30]} 21. Qg6+ {[%emt 0:00:30]} Kf8 {[%emt 0:01:30]} 22. Qh6+ {[%emt 0:06:30]} Kg8 {[%emt 0:02:30]} 23. Qg6+ {[%emt 0:00:30]} 1/2-1/2

[Event "Istanbul Open 2019"]
[Site "Istanbul"]
[Date "2019.08.31"]
[Round "8.11"]
[White "Grigoriev, Armen"]
[Black "Makaraci, Tunahan"]
[Result "1-0"]
[ECO "A05"]
[WhiteElo "2017"]
[BlackElo "2064"]
[Annotator "NA RC"]
[PlyCount "135"]
[EventDate "2019.08.26"]
[EventType "swiss"]
[EventCountry "TUR"]
[SourceTitle "playchess.com"]
[Source "ChessBase"]
[SourceQuality "1"]
[TimeControl "5400+30"]

1. Nf3 Nf6 2. g3 e6 3. Bg2 b6 4. O-O Bb7 5. d3 d5 6. a4 a5 7. Nc3 Be7 8. e4 dxe4 9. Ng5 Na6 10. Ngxe4 Nd5 11. Bd2 O-O 12. h4 Nab4 13. Ng5 Nxc3 14. bxc3 Bxg2 15. Kxg2 Nd5 16. Qe2 Qd7 17. Qe4 Nf6 18. Qf3 Rad8 19. Rfb1 h6 20. Nh3 e5 21. Rd1 Ng4 22. Qe4 f5 23. Qc4+ Kh8 24. f3 Nf6 25. Nf2 Nh5 26. Rg1 Bd6 27. Rae1 Rde8 28. g4 Nf4+ 29. Bxf4 exf4 30. Rxe8 Qxe8 31. d4 fxg4 32. Nxg4 h5 33. Nf2 Be7 34. Ne4 Bxh4 35. Qd5 Qg6+ 36. Kf1 Qf5 37. Qxf5 Rxf5 38. c4 Be7 39. Kg2 Kh7 40. Kh3 g5 41. Re1 Kg6 42. c3 Rf7 43. Rb1 Rf5 44. Re1 Bd6 45. Re2 Rf8 46. Rg2 Be7 47. Rb2 Bf6 48. Rb5 Re8 49. Kg2 g4 50. c5 bxc5 51. Rxc5 h4 52. Rc6 h3+ 53. Kh2 Rxe4 54. fxe4 Kg5 55. e5 Bd8 56. Re6 Kf5 57. Re8 Bh4 58. Rf8+ Ke4 59. e6 Kf3 60. Rg8 Bf6 61. Rg6 Bh4 62. Rg7 Bf6 63. e7 Bxe7 64. Rxe7 Kf2 65. Rg7 Kf3 66. d5 g3+ 67. Kxh3 Ke4 68. c4 1-0

[Event "Istanbul Open 2019"]
[Site "Istanbul"]
[Date "2019.08.31"]
[Round "8.13"]
[White "Oner, Oguz"]
[Black "Sar, Can"]
[Result "1-0"]
[ECO "D37"]
[WhiteElo "1997"]
[BlackElo "2003"]
[Annotator "NA RC"]
[PlyCount "51"]
[EventDate "2019.08.26"]
[EventType "swiss"]
[EventCountry "TUR"]
[SourceTitle "playchess.com"]
[Source "ChessBase"]
[SourceQuality "1"]
[TimeControl "5400+30"]

1. d4 Nf6 2. c4 e6 3. Nf3 a6 4. Nc3 d5 5. cxd5 exd5 6. Bg5 Be6 7. e3 Nbd7 8. Bd3 Bd6 9. O-O h6 10. Bf4 Qe7 11. Ne5 O-O 12. Bg3 Bxe5 13. dxe5 Ng4 14. Be2 f5 15. Nxd5 Qc5 16. Nf4 Qb6 17. Nxe6 Qxe6 18. Rc1 Ndxe5 19. Rxc7 b5 20. Qc2 Nf6 21. Bxe5 Qxe5 22. Rc5 Qe6 23. a4 Ne4 24. axb5 axb5 25. Bxb5 Kh8 26. Rc6 1-0

[Event "Istanbul Open 2019"]
[Site "Istanbul"]
[Date "2019.08.31"]
[Round "8.14"]
[White "Aganazarov, Yagmyr"]
[Black "Portakalci, Yusuf"]
[Result "1/2-1/2"]
[ECO "C02"]
[WhiteElo "1976"]
[BlackElo "1831"]
[Annotator "NA RC"]
[PlyCount "98"]
[EventDate "2019.08.26"]
[EventType "swiss"]
[EventCountry "TUR"]
[SourceTitle "playchess.com"]
[Source "ChessBase"]
[SourceQuality "1"]
[TimeControl "5400+30"]

1. e4 e6 2. d4 d5 3. e5 c5 4. c3 f5 5. Bd3 Nc6 6. Ne2 Nh6 7. Nd2 Nf7 8. Nf3 Be7 9. h4 Qb6 10. Ng5 Nxg5 11. hxg5 Bd7 12. Be3 O-O-O 13. Kf1 Kb8 14. a4 c4 15. Bc2 Na5 16. Rb1 Rc8 17. Kg1 Qa6 18. Nf4 Qb6 19. Nh5 Qd8 20. Nxg7 Bxg5 21. Qd2 Be7 22. Nh5 Rg8 23. Nf4 Rg7 24. g3 Qg8 25. Kg2 Rf8 26. Rh3 Be8 27. Rbh1 Bg5 28. Bd1 Nc6 29. b3 cxb3 30. Bxb3 Na5 31. Ba2 h6 32. Ne2 h5 33. Bxg5 Rxg5 34. Nf4 Nc4 35. Qe2 Rg4 36. Nxh5 Bxh5 37. Rxh5 f4 38. Rh8 Rxg3+ 39. Kf1 Rg1+ 40. Rxg1 Qxh8 41. Ke1 Qh2 42. Qg4 Qh7 43. Qg6 Qh3 44. Qc2 Qh2 45. Qg6 Qh3 46. Qc2 Qh2 47. Qg6 Qh3 48. Qc2 Qh2 49. Qg6 Qh3 1/2-1/2

[Event "Istanbul Open 2019"]
[Site "Istanbul"]
[Date "2019.08.31"]
[Round "8.15"]
[White "Yalcinkaya, Efe"]
[Black "Pektas, Gokdeniz"]
[Result "0-1"]
[ECO "B33"]
[WhiteElo "1542"]
[BlackElo "1652"]
[Annotator "NA"]
[PlyCount "52"]
[EventDate "2019.08.26"]
[EventType "swiss"]
[EventCountry "TUR"]
[SourceTitle "playchess.com"]
[Source "ChessBase"]
[SourceQuality "1"]
[TimeControl "5400+30"]

1. e4 {[%emt 0:00:30]} c5 {[%emt 0:05:30]} 2. Nf3 {[%emt 0:00:30]} Nc6 {[%emt 0:00:30]} 3. d4 {[%emt 0:00:30]} cxd4 {[%emt 0:00:30]} 4. Nxd4 {[%emt 0:00:30]} Nf6 {[%emt 0:00:30]} 5. Nc3 {[%emt 0:00:30]} e5 {[%emt 0:00:30]} 6. Ndb5 {[%emt 0:00:30]} d6 {[%emt 0:00:30]} 7. Bg5 {[%emt 0:00:30]} a6 {[%emt 0:00:30]} 8. Na3 {[%emt 0:00:30]} b5 {[%emt 0:00:30]} 9. Nd5 {[%emt 0:00:30]} Be7 {[%emt 0:00:30]} 10. Bxf6 {[%emt 0:00:30]} Bxf6 {[%emt 0:00:30]} 11. c3 {[%emt 0:00:30]} Bg5 {[%emt 0:00:30]} 12. Nc2 {[%emt 0:00:30]} Be6 {[%emt 0:00:30]} 13. Ncb4 {[%emt 0:01:30]} Nxb4 {[%emt 0:03:30]} 14. Nxb4 {[%emt 0:00:30]} O-O {[%emt 0:00:30]} 15. Be2 {[%emt 0:03:30]} f5 {[%emt 0:02:30]} 16. exf5 {[%emt 0:02:30]} Bxf5 {[%emt 0:00:30]} 17. O-O {[%emt 0:01:30]} Be4 {[%emt 0:08:30]} 18. Bd3 {[%emt 0:04:30]} Bb7 {[%emt 0:01:30]} 19. Qe2 {[%emt 0:20:30]} Rf4 {[%emt 0:28:30]} 20. g3 {[%emt 0:00:30]} Bf3 {[%emt 0:00:30]} 21. Qe1 {[%emt 0:00:30]} Qd7 {[%emt 0:00:30]} 22. Be2 {[%emt 0:00:30]} d5 {[%emt 0:00:30]} 23. Nxd5 {[%emt 0:00:30]} Qh3 {[%emt 0:00:30]} 24. Ne3 {[%emt 0:00:30]} Rh4 {[%emt 0:00:30]} 25. gxh4 {[%emt 0:00:30]} Bxe3 {[%emt 0:00:30]} 26. fxe3 {[%emt 0:00:30]} Qg2# {[%emt 0:00:30]} 0-1

[Event "Istanbul Open 2019"]
[Site "Istanbul"]
[Date "2019.08.31"]
[Round "8.16"]
[White "Goker, Abdulkadir"]
[Black "Can, Ilhan"]
[Result "0-1"]
[ECO "D02"]
[WhiteElo "1670"]
[BlackElo "1683"]
[Annotator "NA RC"]
[PlyCount "67"]
[EventDate "2019.08.26"]
[EventType "swiss"]
[EventCountry "TUR"]
[SourceTitle "playchess.com"]
[Source "ChessBase"]
[SourceQuality "1"]
[TimeControl "5400+30"]

1. d4 Nf6 2. Nf3 e6 3. g3 c5 4. Bg2 d5 5. O-O Be7 6. c4 dxc4 7. Qa4+ Nbd7 8. dxc5 Qc7 9. c6 bxc6 10. Qxc4 Bb7 11. Na3 O-O 12. Bd2 Qb6 13. Qc2 Qa6 14. Nc4 c5 15. Rfe1 Be4 16. Qc1 Rab8 17. b3 Nb6 18. Bf4 Rbd8 19. Nfe5 Bxg2 20. Kxg2 Qb7+ 21. Kg1 Nfd5 22. Na5 Qa8 23. Nec6 Rd7 24. Nxe7+ Nxe7 25. Qxc5 Ned5 26. Qd4 Nf6 27. Qe3 Qd5 28. b4 Qh5 29. Qf3 Ng4 30. h4 Nd5 31. Rad1 f5 32. Nc6 Qf7 33. a3 Qf6 34. e4 0-1

[Event "Istanbul Open 2019"]
[Site "Istanbul"]
[Date "2019.08.31"]
[Round "8.17"]
[White "Goekkaya, Murat Bora"]
[Black "Bapoglu, Ibrahim"]
[Result "1-0"]
[ECO "E00"]
[WhiteElo "1594"]
[BlackElo "1501"]
[Annotator "NA RC"]
[PlyCount "79"]
[EventDate "2019.08.26"]
[EventType "swiss"]
[EventCountry "TUR"]
[SourceTitle "playchess.com"]
[Source "ChessBase"]
[SourceQuality "1"]
[TimeControl "5400+30"]

1. d4 Nf6 2. c4 e6 3. a3 d5 4. Nc3 c6 5. cxd5 exd5 6. Bg5 h6 7. Bh4 Be7 8. e3 O-O 9. Bd3 Re8 10. Nge2 Nfd7 11. Bg3 Bf6 12. O-O Nf8 13. Qc2 Bg4 14. f3 Bc8 15. Bf2 Ne6 16. Rad1 Kh8 17. Qd2 c5 18. dxc5 Nc6 19. b4 d4 20. Ne4 dxe3 21. Bxe3 Ng5 22. Nd6 Re7 23. Bb1 Qf8 24. f4 Ne6 25. b5 Ncd8 26. Qd3 Qg8 27. Ng3 Nf8 28. Nge4 Nd7 29. g4 g5 30. Nxf6 Rxe3 31. Qxe3 Nxf6 32. Qe5 Qg7 33. fxg5 Nxg4 34. Qxg7+ Kxg7 35. Ne8+ Kf8 36. Rxd8 Ke7 37. Rfd1 hxg5 38. Nc7 Rb8 39. Re8+ Kf6 40. Rdd8 1-0

[Event "Istanbul Open 2019"]
[Site "Istanbul"]
[Date "2019.08.31"]
[Round "8.18"]
[White "Hakkaki Fard, Pedram"]
[Black "Ahmadov, Orkhan"]
[Result "1-0"]
[ECO "D02"]
[WhiteElo "1720"]
[BlackElo "1615"]
[Annotator "NA RC"]
[PlyCount "77"]
[EventDate "2019.08.26"]
[EventType "swiss"]
[EventCountry "TUR"]
[SourceTitle "playchess.com"]
[Source "ChessBase"]
[SourceQuality "1"]
[TimeControl "5400+30"]

1. d4 d5 2. Bf4 Nf6 3. e3 c5 4. c3 e6 5. Nd2 Nc6 6. Ngf3 Bd6 7. Bg3 O-O 8. Bd3 b6 9. Ne5 Ne7 10. Qe2 Bb7 11. Rd1 Nf5 12. e4 Nxg3 13. hxg3 g6 14. Nxf7 Rxf7 15. e5 cxd4 16. cxd4 Bb4 17. exf6 Qxf6 18. Kf1 Qxd4 19. Nf3 Qf6 20. Ne5 Rg7 21. Rh4 Bd6 22. Ng4 Qe7 23. Re1 Rf8 24. Kg1 Bc8 25. a3 a5 26. Qd2 Bf4 27. Qc3 Bg5 28. Rh2 Bf6 29. Qb3 Bd4 30. Re2 Qc5 31. Rh4 Qd6 32. Nh6+ Kh8 33. Rxd4 Qd8 34. Qc3 e5 35. Rxe5 Qf6 36. Rf4 Qd6 37. Nf7+ Rgxf7 38. Rxf7 Rxf7 39. Re8# 1-0

[Event "Istanbul Open 2019"]
[Site "Istanbul"]
[Date "2019.08.31"]
[Round "8.19"]
[White "Ozbag, Berat"]
[Black "Ferat, Asur Maksut"]
[Result "1-0"]
[ECO "A84"]
[WhiteElo "1663"]
[BlackElo "1651"]
[Annotator "NA"]
[PlyCount "93"]
[EventDate "2019.08.26"]
[EventType "swiss"]
[EventCountry "TUR"]
[SourceTitle "playchess.com"]
[Source "ChessBase"]
[SourceQuality "1"]
[TimeControl "5400+30"]

1. d4 {[%emt 0:00:30]} e6 {[%emt 0:00:30]} 2. Nf3 {[%emt 0:00:30]} b6 {[%emt 0:00:30]} 3. c4 {[%emt 0:00:30]} f5 {[%emt 0:01:30]} 4. e3 {[%emt 0:01:30]} Nf6 {[%emt 0:00:30]} 5. Bd3 {[%emt 0:00:00]} Bb7 {[%emt 0:00:30]} 6. O-O {[%emt 0:00:00]} Be7 {[%emt 0:00:30]} 7. b3 {[%emt 0:00:30]} O-O {[%emt 0:00:30]} 8. Bb2 {[%emt 0:00:30]} h6 {[%emt 0:00:30]} 9. Ne5 {[%emt 0:00:30]} Qe8 {[%emt 0:03:30]} 10. Be2 {[%emt 0:01:30]} d6 {[%emt 0:01:30]} 11. Nd3 {[%emt 0:00:30]} Nbd7 {[%emt 0:01:30]} 12. Nf4 {[%emt 0:03:30]} Qf7 {[%emt 0:06:30]} 13. Bf3 {[%emt 0:00:30]} Bxf3 {[%emt 0:05:30]} 14. Qxf3 {[%emt 0:00:00]} Ne4 {[%emt 0:00:00]} 15. Qe2 {[%emt 0:02:00]} g5 {[%emt 0:09:00]} 16. Nd3 {[%emt 0:02:30]} Kh7 {[%emt 0:05:30]} 17. f3 {[%emt 0:00:30]} Nef6 {[%emt 0:00:30]} 18. Nd2 {[%emt 0:00:30]} Rg8 {[%emt 0:02:30]} 19. e4 {[%emt 0:00:30]} Rae8 {[%emt 0:01:30]} 20. Rae1 {[%emt 0:01:30]} Bd8 {[%emt 0:06:30]} 21. g4 {[%emt 0:08:30]} Nf8 {[%emt 0:06:30]} 22. e5 {[%emt 0:00:30]} N6d7 {[%emt 0:00:30]} 23. exd6 {[%emt 0:00:30]} cxd6 {[%emt 0:00:30]} 24. gxf5 {[%emt 0:02:30]} Qxf5 {[%emt 0:00:30]} 25. Ne4 {[%emt 0:00:00]} Bc7 {[%emt 0:04:30]} 26. Ng3 {[%emt 0:02:00]} Qh3 {[%emt 0:06:30]} 27. Qe4+ {[%emt 0:00:30]} Rg6 {[%emt 0:00:30]} 28. Nf2 {[%emt 0:00:30]} Qh4 {[%emt 0:00:30]} 29. Qc6 {[%emt 0:00:30]} Bb8 {[%emt 0:00:30]} 30. Re4 {[%emt 0:00:30]} g4 {[%emt 0:00:30]} 31. Rxg4 {[%emt 0:00:30]} Rxg4 {[%emt 0:17:48]} 32. fxg4 {[%emt 0:20:30]} d5 {[%emt 0:00:30]} 33. Nfh1 {[%emt 0:00:30]} Bxg3 {[%emt 0:00:30]} 34. Nxg3 {[%emt 0:00:30]} Re7 {[%emt 0:00:30]} 35. Ba3 {[%emt 0:00:30]} Rg7 {[%emt 0:00:30]} 36. Bxf8 {[%emt 0:00:30]} Nxf8 {[%emt 0:00:30]} 37. Rxf8 {[%emt 0:00:30]} Qxg4 {[%emt 0:00:30]} 38. Qe8 {[%emt 0:00:30]} Qxd4+ {[%emt 0:00:30]} 39. Kg2 {[%emt 0:00:30]} Qe4+ {[%emt 0:00:30]} 40. Kf1 {[%emt 0:00:30]} Qd3+ {[%emt 0:00:30]} 41. Ne2 {[%emt 0:00:30]} Qh3+ {[%emt 0:00:30]} 42. Ke1 {[%emt 0:00:30]} Qh4+ {[%emt 0:00:30]} 43. Kd1 {[%emt 0:00:30]} Re7 {[%emt 0:00:30]} 44. Rh8+ {[%emt 0:00:30]} Kg7 {[%emt 0:00:30]} 45. Qf8+ {[%emt 0:00:30]} Kg6 {[%emt 0:00:30]} 46. Rg8+ {[%emt 0:00:30]} Kh5 {[%emt 0:00:30]} 47. Ng3+ {[%emt 0:00:30]} 1-0

[Event "Istanbul Open 2019"]
[Site "Istanbul"]
[Date "2019.09.01"]
[Round "9.2"]
[White "Shanava, Konstantine"]
[Black "Yarashov, Azat"]
[Result "1-0"]
[ECO "B25"]
[WhiteElo "2496"]
[BlackElo "2156"]
[Annotator "ChessBase"]
[PlyCount "63"]
[EventDate "2019.08.26"]
[EventType "swiss"]
[EventCountry "TUR"]
[SourceTitle "playchess.com"]
[Source "ChessBase"]
[SourceQuality "1"]
[TimeControl "5400+30"]

1. e4 {[%emt 0:01:30]} c5 {[%emt 0:13:30]} 2. Nc3 {[%emt 0:00:30]} Nc6 {[%emt 0:00:30]} 3. g3 {[%emt 0:00:30]} g6 {[%emt 0:00:30]} 4. Bg2 {[%emt 0:00:30]} Bg7 {[%emt 0:00:30]} 5. d3 {[%emt 0:00:30]} Rb8 {[%emt 0:00:30]} 6. a4 {[%emt 0:00:30]} a6 {[%emt 0:00:30]} 7. f4 {[%emt 0:00:30]} d6 {[%emt 0:00:30]} 8. h3 {[%emt 0:00:30]} Nf6 {[%emt 0:00:30]} 9. Nf3 {[%emt 0:00:30]} O-O {[%emt 0:00:30]} 10. O-O {[%emt 0:00:30]} b5 {[%emt 0:00:30]} 11. axb5 {[%emt 0:00:30]} axb5 {[%emt 0:00:30]} 12. g4 {[%emt 0:00:30]} b4 {[%emt 0:00:30]} 13. Ne2 {[%emt 0:00:30]} c4 {[%emt 0:00:30]} 14. Be3 {[%emt 0:00:30]} b3 {[%emt 0:00:30]} 15. c3 {[%emt 0:00:30]} cxd3 {[%emt 0:00:30]} 16. Qxd3 {[%emt 0:00:30]} Nd7 {[%emt 0:00:30]} 17. Ng3 {[%emt 0:00:30]} Nc5 {[%emt 0:00:30]} 18. Qe2 {[%emt 0:00:30]} Qb6 {[%emt 0:00:30]} 19. Qf2 {[%emt 0:00:30]} Bb7 {[%emt 0:00:30]} 20. e5 {[%emt 0:00:30]} Rbc8 {[%emt 0:00:30]} 21. Ng5 {[%emt 0:00:30]} Nd8 {[%emt 0:00:30]} 22. N5e4 {[%emt 0:00:30]} Qc7 {[%emt 0:00:30]} 23. Nxc5 {[%emt 0:00:30]} dxc5 {[%emt 0:00:30]} 24. Ne4 {[%emt 0:00:30]} Bxe4 {[%emt 0:00:30]} 25. Bxe4 {[%emt 0:00:30]} e6 {[%emt 0:00:30]} 26. Ra6 {[%emt 0:00:30]} f6 {[%emt 0:00:30]} 27. exf6 {[%emt 0:00:30]} Rxf6 {[%emt 0:00:30]} 28. Qg2 {[%emt 0:00:30]} Kh8 {[%emt 0:00:30]} 29. Rfa1 {[%emt 0:00:30]} Rf7 {[%emt 0:00:30]} 30. Kh1 {[%emt 0:00:30]} Re7 {[%emt 0:00:30]} 31. Qf2 {[%emt 0:00:30]} Nf7 {[%emt 0:00:30]} 32. Rc6 {[%emt 0:00:30]} 1-0

[Event "Istanbul Open 2019"]
[Site "Istanbul"]
[Date "2019.09.01"]
[Round "9.3"]
[White "Yaran, Siar"]
[Black "Darban, Morteza"]
[Result "1-0"]
[ECO "A37"]
[WhiteElo "2209"]
[BlackElo "2280"]
[Annotator "NA"]
[PlyCount "73"]
[EventDate "2019.08.26"]
[EventType "swiss"]
[EventCountry "TUR"]
[SourceTitle "playchess.com"]
[Source "ChessBase"]
[SourceQuality "1"]
[TimeControl "5400+30"]

1. Nf3 {[%emt 0:13:30]} c5 {[%emt 0:10:30]} 2. c4 {[%emt 0:00:30]} g6 {[%emt 0:00:30]} 3. Nc3 {[%emt 0:00:30]} Bg7 {[%emt 0:00:30]} 4. g3 {[%emt 0:00:30]} Nc6 {[%emt 0:00:30]} 5. Bg2 {[%emt 0:00:30]} Nh6 {[%emt 0:00:30]} 6. h4 {[%emt 0:00:30]} (6. a4 {[%emt 0:04:30]}) 6... Ng4 {[%emt 0:00:30]} 7. h5 $11 {[%emt 0:00:30]} Nge5 {[%emt 0:00:30]} 8. Nxe5 {[%emt 0:00:30]} Bxe5 {[%emt 0:00:30]} 9. d3 {[%emt 0:00:30]} d6 {[%emt 0:00:30]} 10. Bf4 {[%emt 0:00:30]} Bxf4 {[%emt 0:00:30]} 11. gxf4 {[%emt 0:00:30]} Bg4 {[%emt 0:00:30]} 12. hxg6 {[%emt 0:00:30]} fxg6 {[%emt 0:00:30]} 13. Qd2 {[%emt 0:00:30]} Qd7 {[%emt 0:00:30]} 14. O-O-O {[%emt 0:00:30]} Nd4 {[%emt 0:00:30]} 15. Rdg1 {[%emt 0:00:30]} O-O-O {[%emt 0:00:30]} 16. Be4 {[%emt 0:00:30]} Bf5 {[%emt 0:00:30]} 17. Rg3 {[%emt 0:00:30]} Rdf8 {[%emt 0:00:30]} 18. e3 {[%emt 0:00:30]} Bxe4 {[%emt 0:00:30]} 19. dxe4 {[%emt 0:00:30]} Ne6 {[%emt 0:00:30]} 20. Rd1 {[%emt 0:00:30]} Qc6 {[%emt 0:00:30]} 21. Nd5 {[%emt 0:00:30]} Rf7 {[%emt 0:00:30]} 22. Rh1 {[%emt 0:00:30]} Re8 {[%emt 0:00:30]} 23. Rgh3 {[%emt 0:00:30]} Nf8 {[%emt 0:00:30]} 24. Qc3 {[%emt 0:00:30]} e5 {[%emt 0:00:30]} 25. Qd3 {[%emt 0:00:30]} a6 {[%emt 0:00:30]} 26. f5 {[%emt 0:00:30]} Kb8 {[%emt 0:00:30]} 27. f4 {[%emt 0:00:30]} Ka8 {[%emt 0:00:30]} 28. f6 {[%emt 0:00:30]} exf4 {[%emt 0:00:30]} 29. exf4 {[%emt 0:00:30]} Qd7 {[%emt 0:00:30]} 30. Kb1 {[%emt 0:00:30]} Qd8 {[%emt 0:00:30]} 31. a3 {[%emt 0:00:30]} Re6 {[%emt 0:00:30]} 32. f5 {[%emt 0:00:30]} gxf5 {[%emt 0:00:30]} 33. exf5 {[%emt 0:00:30]} Re5 {[%emt 0:00:30]} 34. Rg1 {[%emt 0:00:30]} Qd7 {[%emt 0:00:30]} 35. Rh5 {[%emt 0:00:30]} Qe8 {[%emt 0:00:30]} 36. Ka2 {[%emt 0:00:30]} Nd7 {[%emt 0:00:30]} 37. Rg7 {[%emt 0:00:30]} 1-0

[Event "Istanbul Open 2019"]
[Site "Istanbul"]
[Date "2019.09.01"]
[Round "9.4"]
[White "Eren, Ataberk"]
[Black "Oner, Oguz"]
[Result "1/2-1/2"]
[ECO "D36"]
[WhiteElo "2254"]
[BlackElo "1997"]
[Annotator "NA"]
[PlyCount "192"]
[EventDate "2019.08.26"]
[EventType "swiss"]
[EventCountry "TUR"]
[SourceTitle "playchess.com"]
[Source "ChessBase"]
[SourceQuality "1"]
[TimeControl "5400+30"]

1. d4 d5 {[%emt 0:12:30]} 2. c4 {[%emt 0:02:00]} e6 {[%emt 0:00:30]} 3. Nc3 {[%emt 0:00:30]} Nf6 {[%emt 0:00:30]} 4. cxd5 {[%emt 0:00:30]} exd5 {[%emt 0:00:30]} 5. Bg5 {[%emt 0:00:30]} c6 {[%emt 0:00:30]} 6. Qc2 {[%emt 0:00:30]} Be7 {[%emt 0:00:30]} 7. e3 {[%emt 0:00:30]} O-O {[%emt 0:00:30]} 8. Nf3 {[%emt 0:00:30]} Ne4 {[%emt 0:00:30]} 9. Bxe7 {[%emt 0:00:30]} Qxe7 {[%emt 0:00:30]} 10. Nxe4 {[%emt 0:00:30]} dxe4 {[%emt 0:00:30]} 11. Nd2 {[%emt 0:00:30]} Bf5 {[%emt 0:00:30]} 12. g3 {[%emt 0:00:30]} Nd7 {[%emt 0:00:30]} 13. Bg2 {[%emt 0:00:30]} c5 {[%emt 0:00:30]} 14. dxc5 {[%emt 0:00:30]} Nxc5 {[%emt 0:00:30]} 15. O-O {[%emt 0:00:30]} Rac8 {[%emt 0:00:30]} 16. Nb3 {[%emt 0:00:30]} Qe5 {[%emt 0:00:30]} 17. Nxc5 {[%emt 0:00:30]} Rxc5 {[%emt 0:00:30]} 18. Qd2 {[%emt 0:00:30]} Rfc8 {[%emt 0:00:30]} 19. Rac1 {[%emt 0:00:30]} h5 {[%emt 0:00:30]} 20. Rxc5 {[%emt 0:00:30]} Qxc5 {[%emt 0:00:30]} 21. h3 {[%emt 0:00:30]} Qc4 {[%emt 0:00:30]} 22. Qa5 {[%emt 0:00:30]} Qc5 {[%emt 0:00:30]} 23. Qa4 {[%emt 0:00:30]} b5 {[%emt 0:00:30]} 24. Qa5 {[%emt 0:00:30]} g6 {[%emt 0:00:30]} 25. a3 {[%emt 0:00:30]} Qe5 {[%emt 0:00:30]} 26. b4 {[%emt 0:00:30]} Rc7 {[%emt 0:00:30]} 27. Rd1 {[%emt 0:00:30]} Kg7 {[%emt 0:00:30]} 28. Bf1 {[%emt 0:00:30]} Rc3 {[%emt 0:00:30]} 29. Qxa7 {[%emt 0:00:30]} Be6 {[%emt 0:00:30]} 30. Qd4 {[%emt 0:00:30]} Qxd4 {[%emt 0:00:30]} 31. Rxd4 {[%emt 0:00:30]} Rxa3 {[%emt 0:00:30]} 32. Bxb5 {[%emt 0:00:30]} Bxh3 {[%emt 0:00:30]} 33. Rxe4 {[%emt 0:00:30]} Rc3 {[%emt 0:00:30]} 34. Rc4 {[%emt 0:00:30]} Rb3 {[%emt 0:00:30]} 35. Bc6 {[%emt 0:00:30]} Kf8 {[%emt 0:00:30]} 36. Bd5 {[%emt 0:00:30]} Rb1+ {[%emt 0:00:30]} 37. Kh2 {[%emt 0:00:30]} Be6 {[%emt 0:00:30]} 38. Bxe6 {[%emt 0:00:30]} fxe6 {[%emt 0:00:30]} 39. Kh3 {[%emt 0:00:30]} Ke7 {[%emt 0:00:30]} 40. Kh4 {[%emt 0:00:30]} Rb2 {[%emt 0:00:30]} 41. f3 {[%emt 0:00:30]} Rf2 {[%emt 0:00:30]} 42. f4 {[%emt 0:00:30]} Rh2+ {[%emt 0:00:30]} 43. Kg5 {[%emt 0:00:30]} Rg2 {[%emt 0:00:30]} 44. Kh4 {[%emt 0:00:30]} Rh2+ {[%emt 0:00:30]} 45. Kg5 {[%emt 0:00:30]} Rg2 {[%emt 0:00:30]} 46. Kxg6 {[%emt 0:00:30]} Rxg3+ {[%emt 0:00:30]} 47. Kxh5 {[%emt 0:00:30]} Rxe3 {[%emt 0:00:30]} 48. b5 {[%emt 0:00:30]} Rb3 {[%emt 0:00:30]} 49. Rc5 {[%emt 0:00:30]} Kf6 {[%emt 0:00:30]} 50. Re5 {[%emt 0:00:30]} Rc3 {[%emt 0:00:30]} 51. Kg4 {[%emt 0:00:30]} Rb3 {[%emt 0:00:30]} 52. Rc5 {[%emt 0:00:30]} Ke7 {[%emt 0:00:30]} 53. Re5 {[%emt 0:00:30]} Kf6 {[%emt 0:00:30]} 54. Rh5 {[%emt 0:00:30]} Kg6 {[%emt 0:00:30]} 55. Rg5+ {[%emt 0:00:30]} Kf6 {[%emt 0:00:30]} 56. Re5 {[%emt 0:00:30]} Rc3 {[%emt 0:00:30]} 57. Rh5 {[%emt 0:00:30]} Kg6 {[%emt 0:00:30]} 58. Rh8 {[%emt 0:00:30]} Rb3 {[%emt 0:00:30]} 59. Rb8 {[%emt 0:00:30]} Rb4 {[%emt 0:00:30]} 60. Kf3 {[%emt 0:00:30]} Kf5 {[%emt 0:00:30]} 61. Rf8+ {[%emt 0:00:30]} Kg6 {[%emt 0:00:30]} 62. Rg8+ {[%emt 0:00:30]} Kf6 {[%emt 0:00:30]} 63. Rg5 {[%emt 0:00:30]} Ke7 {[%emt 0:00:30]} 64. Re5 {[%emt 0:00:30]} Kd6 {[%emt 0:00:30]} 65. Kg4 {[%emt 0:00:30]} Ke7 {[%emt 0:00:30]} 66. Kf3 {[%emt 0:00:30]} Kd6 {[%emt 0:00:30]} 67. Kg3 {[%emt 0:00:30]} Kd7 {[%emt 0:00:30]} 68. Rh5 {[%emt 0:00:30]} Kd6 {[%emt 0:00:30]} 69. Re5 {[%emt 0:00:30]} Kd7 {[%emt 0:00:30]} 70. Kf3 {[%emt 0:00:30]} Kd6 {[%emt 0:00:30]} 71. Rh5 {[%emt 0:00:30]} Ke7 {[%emt 0:00:30]} 72. Rc5 {[%emt 0:00:30]} Kd6 {[%emt 0:00:30]} 73. Rg5 {[%emt 0:00:30]} Ke7 {[%emt 0:00:30]} 74. Kg3 {[%emt 0:00:30]} Kf6 {[%emt 0:00:30]} 75. Rh5 {[%emt 0:00:30]} Rb3+ {[%emt 0:00:30]} 76. Kf2 {[%emt 0:00:30]} Rb4 {[%emt 0:00:30]} 77. Ke3 {[%emt 0:00:30]} Ke7 {[%emt 0:00:30]} 78. Rh7+ {[%emt 0:00:30]} Kd6 {[%emt 0:00:30]} 79. Rb7 {[%emt 0:00:30]} Kd5 {[%emt 0:00:30]} 80. b6 {[%emt 0:00:30]} Rb3+ {[%emt 0:00:30]} 81. Kd2 {[%emt 0:00:30]} Ke4 {[%emt 0:00:30]} 82. Kc2 {[%emt 0:00:30]} Rb5 {[%emt 0:00:30]} 83. Kc3 {[%emt 0:00:30]} Kxf4 {[%emt 0:00:30]} 84. Kc4 {[%emt 0:00:30]} Rb1 {[%emt 0:00:30]} 85. Rf7+ {[%emt 0:00:30]} Ke3 {[%emt 0:00:30]} 86. Kc5 {[%emt 0:00:30]} e5 {[%emt 0:00:30]} 87. Kc6 {[%emt 0:00:30]} e4 {[%emt 0:00:30]} 88. Rf5 {[%emt 0:00:30]} Kd4 {[%emt 0:00:30]} 89. Rd5+ {[%emt 0:00:30]} Kc4 {[%emt 0:00:30]} 90. Rc5+ {[%emt 0:00:30]} Kd4 {[%emt 0:00:30]} 91. Rb5 {[%emt 0:00:30]} Rxb5 {[%emt 0:00:30]} 92. Kxb5 {[%emt 0:00:30]} e3 {[%emt 0:00:30]} 93. b7 {[%emt 0:00:30]} e2 {[%emt 0:00:30]} 94. b8=Q {[%emt 0:00:30]} e1=Q {[%emt 0:00:30]} 95. Qd6+ {[%emt 0:00:30]} Ke3 {[%emt 0:00:30]} 96. Qe5+ {[%emt 0:00:30]} Kf2 {[%emt 0:00:30]} 1/2-1/2